[Event "Czech Youth U14 Boys 2024"]
[Site "Kouty nad Desnou"]
[Date "2024.03.13"]
[Round "6.8"]
[White "Macosek, Alex"]
[Black "Stara, Zuzana"]
[Result "0-1"]
[ECO "D00"]
[WhiteElo "1781"]
[BlackElo "1807"]
[Annotator "NA RC"]
[PlyCount "86"]
[EventDate "2024.03.10"]
[EventType "swiss"]
[EventCountry "CZE"]
[SourceTitle "playchess.com"]
[Source "ChessBase"]
[SourceQuality "1"]
[TimeControl "40/5400+30:1800+30"]

1. d4 {[%emt 0:01:18]} d5 {[%emt 0:00:04]} 2. Bf4 {[%emt 0:01:07]} c5 {[%emt 0:00:01]} 3. e3 {[%emt 0:00:49]} cxd4 {[%emt 0:00:04]} 4. exd4 {[%emt 0:00:53]} Nc6 {[%emt 0:00:02]} 5. c3 {[%emt 0:03:58]} Bf5 {[%emt 0:00:11]} 6. Nd2 {[%emt 0:00:47]} f6 {[%emt 0:01:29]} 7. Bb5 {[%emt 0:07:30]} g5 {[%emt 0:01:36]} 8. Bg3 {[%emt 0:01:40]} h5 {[%emt 0:01:08]} 9. h3 {[%emt 0:06:13]} e6 {[%emt 0:00:18]} 10. Nb3 {[%emt 0:11:58]} Qd7 {[%emt 0:06:53]} 11. Bd3 {[%emt 0:11:06]} Qh7 {[%emt 0:02:15]} 12. Bxf5 {[%emt 0:00:36]} Qxf5 {[%emt 0:00:08]} 13. Qf3 {[%emt 0:02:38]} Qxf3 {[%emt 0:06:35]} 14. Nxf3 {[%emt 0:02:09]} Nh6 {[%emt 0:00:39]} 15. O-O-O {[%emt 0:04:20]} Nf5 {[%emt 0:00:47]} 16. Rd3 {[%emt 0:07:43]} Rc8 {[%emt 0:07:12]} 17. Kb1 {[%emt 0:00:58]} Kf7 {[%emt 0:01:03]} 18. Ne1 {[%emt 0:03:22]} Nxg3 {[%emt 0:02:09]} 19. Rxg3 {[%emt 0:00:19]} Bd6 {[%emt 0:00:20]} 20. Re3 {[%emt 0:01:54]} Bf4 {[%emt 0:02:14]} 21. Re2 {[%emt 0:00:01]} b6 {[%emt 0:00:35]} 22. Nd3 {[%emt 0:00:29]} Bd6 {[%emt 0:00:18]} 23. Rf1 {[%emt 0:03:41]} g4 {[%emt 0:05:48]} 24. h4 {[%emt 0:03:02]} Rhe8 {[%emt 0:01:26]} 25. f4 {[%emt 0:01:48]} Ne7 {[%emt 0:00:45]} 26. g3 {[%emt 0:00:46]} Nf5 {[%emt 0:00:32]} 27. Rg1 {[%emt 0:00:31]} Bb8 {[%emt 0:02:16]} 28. Nd2 {[%emt 0:01:40]} Nd6 {[%emt 0:00:52]} 29. Rge1 {[%emt 0:01:44]} a5 {[%emt 0:03:15]} 30. a3 {[%emt 0:05:03]} Nb5 {[%emt 0:04:37]} 31. Re3 {[%emt 0:05:39]} Nd6 {[%emt 0:09:05]} 32. R3e2 {[%emt 0:00:27]} Nf5 {[%emt 0:08:47]} 33. Nf1 {[%emt 0:01:11]} Bd6 {[%emt 0:01:00]} 34. Ka2 {[%emt 0:01:16]} b5 {[%emt 0:04:37]} 35. Kb3 {[%emt 0:06:06]} Rb8 {[%emt 0:14:52]} 36. a4 {[%emt 0:00:55]} b4 {[%emt 0:01:52]} 37. Ka2 {[%emt 0:00:25]} Rbc8 {[%emt 0:02:09]} 38. Kb3 {[%emt 0:00:24]} bxc3 {[%emt 0:04:53]} 39. bxc3 {[%emt 0:00:20]} Rc4 {[%emt 0:00:58]} 40. Nb2 {[%emt 0:02:00]} Rb8+ {[%emt 0:01:33]} 41. Ka2 {[%emt 0:31:38]} Rxc3 {[%emt 0:32:00]} 42. Rxe6 {[%emt 0:00:00]} Ra3+ {[%emt 0:00:00]} 43. Kb1 {[%emt 0:00:00]} Rab3 {[%emt 0:00:00]} 0-1

[Event "Czech Youth U14 Boys 2024"]
[Site "Kouty nad Desnou"]
[Date "2024.03.13"]
[Round "6.9"]
[White "Gregor, Alexandr"]
[Black "Migalko, Dmitriy"]
[Result "1-0"]
[ECO "B49"]
[WhiteElo "1777"]
[BlackElo "1896"]
[Annotator "NA RC"]
[PlyCount "92"]
[EventDate "2024.03.10"]
[EventType "swiss"]
[EventCountry "CZE"]
[SourceTitle "playchess.com"]
[Source "ChessBase"]
[SourceQuality "1"]
[TimeControl "40/5400+30:1800+30"]

1. e4 {[%emt 0:00:05]} c5 {[%emt 0:00:06]} 2. Nf3 {[%emt 0:00:04]} e6 {[%emt 0:00:09]} 3. d4 {[%emt 0:00:06]} cxd4 {[%emt 0:00:23]} 4. Nxd4 {[%emt 0:00:06]} Nc6 {[%emt 0:00:17]} 5. Nc3 {[%emt 0:00:21]} Qc7 {[%emt 0:00:59]} 6. Be3 {[%emt 0:00:18]} a6 {[%emt 0:00:37]} 7. Be2 {[%emt 0:00:13]} Nf6 {[%emt 0:00:48]} 8. O-O {[%emt 0:00:20]} Be7 {[%emt 0:00:39]} 9. f4 {[%emt 0:00:29]} d6 {[%emt 0:01:02]} 10. Bf3 {[%emt 0:00:53]} O-O {[%emt 0:01:39]} 11. g4 {[%emt 0:00:36] B85: Sicilian Scheveningen: 6 Be2 a6, lines with early Be3.} Nxd4 {[%emt 0:09:22]} 12. Bxd4 e5 {[%emt 0:10:08]} 13. fxe5 {[%emt 0:11:15]} dxe5 {[%emt 0:00:15]} 14. Be3 {[%emt 0:02:32]} Bc5 {[%emt 0:04:42]} 15. Bxc5 {[%emt 0:01:58]} Qxc5+ {[%emt 0:00:05]} 16. Kh1 {[%emt 0:00:20]} Be6 {[%emt 0:07:10]} 17. g5 {[%emt 0:03:53]} Rad8 {[%emt 0:04:47]} 18. Qe2 {[%emt 0:09:08]} Bc4 {[%emt 0:06:13]} 19. Qf2 $1 {[%emt 0:00:10]} Nd7 {[%emt 0:01:26]} 20. Qxc5 {[%emt 0:02:00]} Nxc5 {[%emt 0:00:37]} 21. Rfd1 {[%emt 0:00:14]} Ne6 {[%emt 0:04:07]} 22. Rxd8 {[%emt 0:09:56]} Rxd8 {[%emt 0:00:28]} 23. h4 {[%emt 0:01:12]} Rd2 {[%emt 0:08:48]} 24. Rc1 {[%emt 0:05:06]} Rf2 {[%emt 0:06:08]} 25. Bd1 {[%emt 0:08:47]} (25. Bg4 $17) 25... Rf1+ {[%emt 0:05:26]} 26. Kh2 {[%emt 0:05:18]} Nf4 {[%emt 0:02:41]} 27. Rb1 {[%emt 0:06:21]} Be6 {[%emt 0:05:43]} 28. b3 {[%emt 0:05:55]} b5 {[%emt 0:05:18]} (28... Rf2+ $19 {is more deadly.} 29. Kg1 Nh3+ 30. Kh1 Rf4) 29. a3 {[%emt 0:04:57]} (29. b4 $17 {was worth a try.}) 29... Re1 {[%emt 0:02:12]} 30. Na2 {[%emt 0:08:16]} Rxe4 {[%emt 0:03:30]} 31. Bf3 {[%emt 0:01:59]} Re3 {[%emt 0:00:53]} 32. Bb7 {[%emt 0:00:58]} Re2+ {[%emt 0:00:31]} 33. Kg1 {[%emt 0:00:26]} Rxc2 {[%emt 0:02:13]} 34. Nb4 {[%emt 0:00:25]} Rc3 {[%emt 0:01:32]} 35. Bxa6 {[%emt 0:00:53]} Bxb3 {[%emt 0:01:08]} 36. Bxb5 {[%emt 0:00:38]} Rg3+ {[%emt 0:00:46]} (36... Be6 $17 37. a4 g6) 37. Kf2 {[%emt 0:01:12]} Rg2+ {[%emt 0:01:07]} 38. Kf3 {[%emt 0:02:43]} Be6 $1 {[%emt 0:01:05]} 39. a4 {[%emt 0:02:23]} f6 {[%emt 0:01:25]} 40. gxf6 {[%emt 0:00:33]} gxf6 {[%emt 0:00:21]} 41. a5 {[%emt 0:35:08]} Rg7 {[%emt 0:04:23]} (41... Bg4+ $1 $15 42. Ke4 Kg7) 42. a6 {[%emt 0:00:00]} Nd5 $2 {[%emt 0:05:20]} (42... Rc7 $11 {and Black is okay.}) 43. Bc4 $18 {[%emt 0:00:00]} e4+ {[%emt 0:07:13]} 44. Kf2 {[%emt 0:00:00]} e3+ {[%emt 0:01:04]} 45. Kf3 {[%emt 0:00:00]} Rd7 {[%emt 0:01:03]} 46. Bxd5 Rc7 1-0

[Event "Czech Youth U14 Boys 2024"]
[Site "Kouty nad Desnou"]
[Date "2024.03.13"]
[Round "6.10"]
[White "Stary, Vojtech"]
[Black "Srba, Daniel"]
[Result "1-0"]
[ECO "B20"]
[WhiteElo "1950"]
[BlackElo "1742"]
[Annotator "RC"]
[PlyCount "63"]
[EventDate "2024.03.10"]
[EventType "swiss"]
[EventCountry "CZE"]
[SourceTitle "playchess.com"]
[Source "ChessBase"]
[SourceQuality "1"]
[TimeControl "40/5400+30:1800+30"]

1. e4 {[%emt 0:00:03]} c5 {[%emt 0:00:04]} 2. b3 {[%emt 0:00:04]} d6 {[%emt 0:00:32]} 3. Bb5+ {[%emt 0:00:45]} Bd7 {[%emt 0:00:05]} 4. Bxd7+ {[%emt 0:00:05]} Nxd7 {[%emt 0:00:08]} 5. Bb2 {[%emt 0:00:22]} Ngf6 {[%emt 0:00:18]} 6. Nc3 {[%emt 0:00:29]} g6 {[%emt 0:00:20]} 7. f4 {[%emt 0:00:44]} Bg7 {[%emt 0:01:03]} 8. Qf3 {[%emt 0:00:42]} Rb8 {[%emt 0:02:36]} 9. Nge2 {[%emt 0:05:13]} O-O {[%emt 0:01:44]} 10. g4 {[%emt 0:01:33]} e5 {[%emt 0:26:22]} 11. f5 {[%emt 0:08:43]} g5 {[%emt 0:00:18]} 12. h4 {[%emt 0:05:36]} gxh4 {[%emt 0:01:09]} 13. g5 {[%emt 0:01:30]} Ne8 {[%emt 0:01:38]} 14. Qh5 {[%emt 0:02:05]} f6 {[%emt 0:11:17]} 15. Qxh4 {[%emt 0:03:53]} fxg5 {[%emt 0:01:00]} 16. Qxh7+ {[%emt 0:00:12]} Kf7 17. Qg6+ {[%emt 0:00:30]} Kg8 {[%emt 0:00:09]} 18. O-O-O {[%emt 0:07:01]} Rf6 {[%emt 0:04:02]} 19. Qh7+ {[%emt 0:01:08]} Kf8 {[%emt 0:00:10]} 20. Rdg1 {[%emt 0:04:44]} Rf7 {[%emt 0:01:24]} 21. Qh5 {[%emt 0:05:59]} Bf6 {[%emt 0:02:27]} 22. Nd5 {[%emt 0:03:56]} Rg7 {[%emt 0:01:25]} 23. Nec3 {[%emt 0:04:54]} Nb6 {[%emt 0:02:14]} 24. Qh8+ {[%emt 0:05:22]} Rg8 {[%emt 0:02:02]} 25. Qh6+ {[%emt 0:00:33]} Rg7 {[%emt 0:00:25]} 26. Rg2 {[%emt 0:04:25]} Nxd5 {[%emt 0:04:46]} 27. Nxd5 {[%emt 0:00:51]} Kf7 {[%emt 0:08:50]} 28. Rhg1 {[%emt 0:04:48]} Nc7 {[%emt 0:00:38]} 29. Qh5+ {[%emt 0:00:30]} Kf8 {[%emt 0:00:08]} 30. Nxf6 {[%emt 0:00:42]} Qxf6 {[%emt 0:00:05]} 31. Qh8+ {[%emt 0:00:20]} Ke7 {[%emt 0:01:21]} 32. Qxb8 {[%emt 0:00:13]} 1-0

[Event "Czech Youth U14 Boys 2024"]
[Site "Kouty nad Desnou"]
[Date "2024.03.13"]
[Round "6.11"]
[White "Svadlenka, Dominik"]
[Black "Lorenc, Matej"]
[Result "1-0"]
[ECO "A80"]
[WhiteElo "1888"]
[BlackElo "1637"]
[Annotator "NA RC"]
[PlyCount "61"]
[EventDate "2024.03.10"]
[EventType "swiss"]
[EventCountry "CZE"]
[SourceTitle "playchess.com"]
[Source "ChessBase"]
[SourceQuality "1"]
[TimeControl "40/5400+30:1800+30"]

1. d4 {[%emt 0:00:02]} f5 {[%emt 0:00:06]} 2. Bg5 {[%emt 0:00:04]} Nf6 {[%emt 0:00:13]} 3. Bxf6 {[%emt 0:00:06]} exf6 {[%emt 0:00:09]} 4. e3 {[%emt 0:00:10]} Be7 {[%emt 0:00:42]} 5. Bd3 {[%emt 0:00:22]} d6 {[%emt 0:00:11]} 6. c4 {[%emt 0:00:32] A80: Holländische Verteidigung.} c5 {[%emt 0:01:24]} 7. d5 {[%emt 0:02:56]} g6 {[%emt 0:00:54]} 8. Nc3 {[%emt 0:00:39]} Nd7 {[%emt 0:00:35]} 9. f4 {[%emt 0:00:41]} O-O {[%emt 0:05:46]} 10. Nf3 {[%emt 0:00:47]} Nb8 {[%emt 0:05:43]} 11. O-O {[%emt 0:02:52]} Na6 {[%emt 0:00:46]} 12. Re1 {[%emt 0:03:39]} Nc7 {[%emt 0:01:10]} 13. Qc2 {[%emt 0:03:58]} Bd7 {[%emt 0:00:57]} 14. a3 {[%emt 0:10:20]} Qe8 {[%emt 0:02:50]} 15. b4 {[%emt 0:09:53]} cxb4 {[%emt 0:02:44]} ({Better is} 15... b6) 16. axb4 {[%emt 0:00:12]} b5 {[%emt 0:00:18]} 17. Nd4 {[%emt 0:11:24]} bxc4 {[%emt 0:05:58]} 18. Bxc4 {[%emt 0:00:14]} a6 {[%emt 0:03:38]} 19. e4 {[%emt 0:08:56]} fxe4 {[%emt 0:09:21]} 20. Nxe4 {[%emt 0:08:55]} Qf7 {[%emt 0:02:39] [#]} 21. f5 $1 {[%emt 0:10:23]} Nb5 {[%emt 0:04:28]} 22. Bxb5 {[%emt 0:09:16]} (22. Ne6 $142) 22... axb5 {[%emt 0:01:34]} 23. Nc3 $14 {[%emt 0:02:06]} ({White should try} 23. Ne6 $16 Rxa1 24. Rxa1) 23... Rac8 {[%emt 0:01:54]} 24. Ne6 {[%emt 0:01:45]} Bxe6 {[%emt 0:00:42]} 25. Rxe6 {[%emt 0:00:25]} Rc7 {[%emt 0:00:40]} 26. Qd3 {[%emt 0:00:07]} Rc4 {[%emt 0:02:48]} 27. Ra7 {[%emt 0:00:45]} Rfc8 {[%emt 0:01:28]} 28. Rexe7 {[%emt 0:00:44]} Qxe7 {[%emt 0:03:18]} 29. Rxe7 {[%emt 0:00:29]} Rxc3 {[%emt 0:00:04]} 30. Qf1 {[%emt 0:00:50]} Rc1 {[%emt 0:00:46]} 31. Re1 {[%emt 0:00:04]} 1-0

[Event "Czech Youth U14 Boys 2024"]
[Site "Kouty nad Desnou"]
[Date "2024.03.13"]
[Round "6.12"]
[White "Jezek, Jakub"]
[Black "Trcalek, Filip"]
[Result "1-0"]
[ECO "C48"]
[WhiteElo "1854"]
[BlackElo "1615"]
[Annotator "NA RC"]
[PlyCount "39"]
[EventDate "2024.03.10"]
[EventType "swiss"]
[EventCountry "CZE"]
[SourceTitle "playchess.com"]
[Source "ChessBase"]
[SourceQuality "1"]
[TimeControl "40/5400+30:1800+30"]

1. e4 {[%emt 0:00:01]} e5 {[%emt 0:00:14]} 2. Nf3 {[%emt 0:00:04]} Nc6 {[%emt 0:00:08]} 3. Nc3 {[%emt 0:00:04]} Nf6 {[%emt 0:00:51]} 4. Bb5 {[%emt 0:00:06]} Bc5 {[%emt 0:01:44]} 5. Nxe5 {[%emt 0:00:21]} Nxe5 {[%emt 0:00:52]} 6. d4 {[%emt 0:00:05]} Bd6 {[%emt 0:00:31]} 7. O-O {[%emt 0:00:36]} O-O {[%emt 0:08:21]} 8. f4 {[%emt 0:01:17]} Ng6 {[%emt 0:07:14]} 9. e5 {[%emt 0:00:59]} Be7 {[%emt 0:01:47]} 10. exf6 {[%emt 0:01:39]} Bxf6 {[%emt 0:00:21]} 11. f5 {[%emt 0:01:24]} Ne7 {[%emt 0:02:05]} 12. Ne4 {[%emt 0:06:04]} Nc6 {[%emt 0:04:31]} 13. Nxf6+ {[%emt 0:00:42]} Qxf6 {[%emt 0:00:24]} 14. c3 {[%emt 0:00:45]} a6 {[%emt 0:02:04]} 15. Bd3 {[%emt 0:00:52]} d6 {[%emt 0:04:45]} 16. Qh5 {[%emt 0:06:58]} h6 {[%emt 0:03:54]} 17. g4 {[%emt 0:04:54]} Qe7 {[%emt 0:06:09]} 18. f6 {[%emt 0:01:14]} Qe6 {[%emt 0:00:56]} 19. Bf5 {[%emt 0:03:29]} Qe2 {[%emt 0:06:46]} 20. fxg7 {[%emt 0:01:39]} 1-0

[Event "Czech Youth U14 Boys 2024"]
[Site "Kouty nad Desnou"]
[Date "2024.03.14"]
[Round "7.1"]
[White "Soucek, Andrej"]
[Black "Kroulik, Vaclav"]
[Result "1/2-1/2"]
[ECO "D27"]
[WhiteElo "1825"]
[BlackElo "1936"]
[Annotator "RC"]
[PlyCount "51"]
[EventDate "2024.03.10"]
[EventType "swiss"]
[EventCountry "CZE"]
[SourceTitle "playchess.com"]
[Source "ChessBase"]
[SourceQuality "1"]
[TimeControl "40/5400+30:1800+30"]

1. d4 {[%emt 0:00:03]} d5 {[%emt 0:00:09]} 2. c4 {[%emt 0:00:07]} dxc4 {[%emt 0:00:22]} 3. Nf3 {[%emt 0:00:08]} Nf6 {[%emt 0:00:12]} 4. e3 {[%emt 0:00:17]} e6 {[%emt 0:00:11]} 5. Bxc4 {[%emt 0:00:26]} c5 {[%emt 0:00:12]} 6. O-O {[%emt 0:00:39]} a6 {[%emt 0:00:10]} 7. dxc5 {[%emt 0:03:36]} Qxd1 {[%emt 0:01:29]} 8. Rxd1 {[%emt 0:00:10]} Bxc5 {[%emt 0:00:21]} 9. Be2 {[%emt 0:03:20]} O-O {[%emt 0:02:16]} 10. Nbd2 {[%emt 0:03:42]} Nc6 {[%emt 0:08:08]} 11. a3 {[%emt 0:06:16]} a5 {[%emt 0:09:31]} 12. Nc4 {[%emt 0:04:14]} b6 {[%emt 0:05:00]} 13. Nd4 {[%emt 0:10:59]} Bxd4 {[%emt 0:04:51]} 14. exd4 {[%emt 0:00:08]} Nd5 {[%emt 0:01:10]} 15. Bf3 {[%emt 0:00:46]} Nce7 {[%emt 0:01:17]} 16. Be3 {[%emt 0:10:19]} Ba6 {[%emt 0:04:44]} 17. Rac1 {[%emt 0:04:29]} Rac8 {[%emt 0:01:53]} 18. b3 {[%emt 0:02:13]} Rc7 {[%emt 0:03:47]} 19. Nd6 {[%emt 0:02:54]} Rxc1 {[%emt 0:02:14]} 20. Rxc1 {[%emt 0:00:24]} Rd8 {[%emt 0:00:46]} 21. Nc4 {[%emt 0:09:12]} Rc8 {[%emt 0:07:20]} 22. Ne5 {[%emt 0:01:17]} Nc3 {[%emt 0:06:57]} 23. Nc4 {[%emt 0:08:18]} Ncd5 {[%emt 0:05:00]} 24. Ne5 {[%emt 0:00:13]} Nc3 {[%emt 0:06:23]} 25. Nc4 {[%emt 0:00:06]} Ncd5 {[%emt 0:00:36]} 26. Ne5 {[%emt 0:00:16]} 1/2-1/2

[Event "Czech Youth U14 Boys 2024"]
[Site "Kouty nad Desnou"]
[Date "2024.03.14"]
[Round "7.2"]
[White "Topencik, Bruno"]
[Black "Popov, Roman"]
[Result "1-0"]
[ECO "B12"]
[WhiteElo "2006"]
[BlackElo "2353"]
[Annotator "TA"]
[PlyCount "71"]
[EventDate "2024.03.10"]
[EventType "swiss"]
[EventCountry "CZE"]
[SourceTitle "playchess.com"]
[Source "ChessBase"]
[SourceQuality "1"]
[TimeControl "40/5400+30:1800+30"]

{[%evp 9,71,16,39,29,35,37,44,42,75,58,64,47,58,59,121,112,127,118,121,112,122,112,209,111,152,68,158,55,180,125,137,96,121,129,108,76,73,75,70,68,81,60,61,70,70,43,66,20,48,40,89,77,98,102,170,177,233,216,641,672,1133,1127,29982,10580]} 1. e4 {[%emt 0:00:06]} c6 {[%emt 0:00:16]} 2. d4 {[%emt 0:00:07]} d5 {[%emt 0:00:05]} 3. e5 {[%emt 0:00:03]} c5 {[%emt 0:00:39]} 4. dxc5 {[%emt 0:00:20]} Nc6 {[%emt 0:00:15]} 5. a3 {[%emt 0:00:44]} e6 {[%emt 0:04:46]} 6. Nf3 {[%emt 0:04:28]} Bxc5 {[%emt 0:00:41]} 7. b4 $1 {[%emt 0:01:12][%cal Bb2b4,Bb4b5][%mdl 32]} Be7 {[%emt 0:01:28]} 8. Bb2 {[%emt 0:00:56] White is slightly better.} Qc7 {[%emt 0:05:44]} 9. Bd3 {[%emt 0:01:29]} f6 {[%emt 0:08:52][%cal Rf6e5]} 10. O-O {[%emt 0:15:52]} fxe5 {[%emt 0:15:29]} 11. b5 {[%emt 0:04:15]} Nd8 {[%emt 0:03:40]} ({Black should play} 11... Bf6 $14) 12. Nxe5 $16 {[%emt 0:09:03]} Nf6 {[%emt 0:02:52] Repels Qh5+} 13. Nd2 {[%emt 0:04:01]} O-O {[%emt 0:01:52]} 14. Ndf3 {[%emt 0:02:23]} Bd6 {[%emt 0:05:16]} 15. Re1 {[%emt 0:03:35]} Bd7 {[%emt 0:15:35]} (15... Nf7 $16 16. c4 Nxe5 17. Bxe5 Bxe5 18. Nxe5 Qc5) 16. Qd2 {[%emt 0:09:17]} (16. Rc1 $18) 16... Be8 {[%emt 0:06:45]} 17. h3 {[%emt 0:09:30]} (17. c4 $16) 17... Rc8 {[%emt 0:07:29]} ({Black should try} 17... Bh5 $14) 18. Rad1 {[%emt 0:04:02]} (18. c4 $16) 18... Qb6 {[%emt 0:08:02]} (18... Nf7 $14) 19. Bd4 {[%emt 0:02:04]} ({Better is} 19. c4 $18) 19... Bc5 {[%emt 0:01:30]} 20. Bxc5 {[%emt 0:00:26]} Qxc5 {[%emt 0:01:00]} 21. a4 {[%emt 0:01:20]} Nf7 {[%emt 0:02:18]} 22. Nxf7 {[%emt 0:00:56]} Bxf7 {[%emt 0:00:14]} 23. Ne5 {[%emt 0:03:49]} Qd6 {[%emt 0:02:38]} 24. Qg5 {[%emt 0:01:28]} Nd7 {[%emt 0:02:46] [#]} 25. Qh4 $1 {[%emt 0:01:35][%csl Gd3][%cal Rh4h7] White is much more active.} h6 {[%emt 0:00:41]} 26. Nxd7 {[%emt 0:01:03]} Qxd7 {[%emt 0:00:02]} 27. Re3 {[%emt 0:02:25]} Qd8 {[%emt 0:00:45]} 28. Qg3 $40 {[%emt 0:00:59][%mdl 128] White has some attack.} (28. Qd4 $14 {should be considered.} Qb6 29. Qa1) 28... Qc7 {[%emt 0:01:57]} 29. Re5 {[%emt 0:00:19]} (29. Qxc7 {simplifies} Rxc7 30. f4 Re8 31. Kf2) 29... Rce8 {[%emt 0:00:43]} (29... Qa5 $14) 30. Rde1 {[%emt 0:01:14]} Kh8 {[%emt 0:00:26]} 31. Qe3 {[%emt 0:01:07]} Bg8 {[%emt 0:00:37]} (31... Ra8 $16) 32. Qxa7 $18 {[%emt 0:03:46]} Rf6 {[%emt 0:00:35]} (32... Rc8 $142 33. Qd4 Qc3 34. Qxc3 Rxc3) 33. Rxd5 {[%emt 0:02:42]} exd5 $2 {[%emt 0:00:24]} (33... Ref8 34. Rc5 Qf7) 34. Rxe8 {[%emt 0:00:11]} Qf4 {[%emt 0:00:33]} 35. Qa8 {[%emt 0:05:25][%csl Ga8][%cal Re8g8] [#]} Qxf2+ {[%emt 0:00:32]} 36. Kh1 {[%emt 0:00:11] Weighted Error Value: White=0.24 (precise) /Black=0.66.  Mistake:       	White=5     	Black=8      Inaccurate:     	White=1     	Black=4      OK:         	White=8     	Black=8      Best:        	White=3     	Black=1      Strong:       	White=1     	---} 1-0

[Event "Czech Youth U14 Boys 2024"]
[Site "Kouty nad Desnou"]
[Date "2024.03.14"]
[Round "7.3"]
[White "Martirosyan, David"]
[Black "Mydlar, Matej"]
[Result "1-0"]
[ECO "A04"]
[WhiteElo "1981"]
[BlackElo "1819"]
[Annotator "RC"]
[PlyCount "69"]
[EventDate "2024.03.10"]
[EventType "swiss"]
[EventCountry "CZE"]
[SourceTitle "playchess.com"]
[Source "ChessBase"]
[SourceQuality "1"]
[TimeControl "40/5400+30:1800+30"]

1. Nf3 {[%emt 0:00:15]} c5 {[%emt 0:00:37]} 2. c4 {[%emt 0:00:18]} Nc6 {[%emt 0:00:26]} 3. d4 {[%emt 0:00:11]} cxd4 {[%emt 0:00:16]} 4. Nxd4 {[%emt 0:00:09]} Nf6 {[%emt 0:00:28]} 5. Nc3 {[%emt 0:01:12]} d6 {[%emt 0:00:33]} 6. e4 {[%emt 0:06:59]} g6 {[%emt 0:03:33]} 7. Be2 {[%emt 0:02:12]} Bg7 {[%emt 0:00:17]} 8. Be3 {[%emt 0:00:14]} O-O {[%emt 0:00:51]} 9. h3 {[%emt 0:00:28]} Bd7 {[%emt 0:05:56]} 10. O-O {[%emt 0:00:16]} Nxd4 {[%emt 0:10:52]} 11. Bxd4 {[%emt 0:00:06]} Bc6 {[%emt 0:00:07]} 12. Qc2 {[%emt 0:00:04]} Nd7 {[%emt 0:05:24]} 13. Bxg7 {[%emt 0:00:06]} Kxg7 {[%emt 0:00:05]} 14. b4 {[%emt 0:00:04]} b6 {[%emt 0:01:15]} 15. Rad1 {[%emt 0:04:12]} f5 {[%emt 0:04:31]} 16. exf5 {[%emt 0:05:26]} Rxf5 {[%emt 0:03:19]} 17. Bg4 {[%emt 0:02:27]} Rf8 {[%emt 0:12:43]} 18. Nd5 {[%emt 0:05:13]} Nf6 {[%emt 0:02:37]} 19. Be6 {[%emt 0:03:10]} Bd7 {[%emt 0:08:41]} 20. Rfe1 {[%emt 0:01:58]} Bxe6 {[%emt 0:02:23]} 21. Rxe6 {[%emt 0:00:26]} Nxd5 {[%emt 0:00:15]} 22. cxd5 {[%emt 0:00:36]} Rc8 {[%emt 0:01:33]} 23. Qe4 {[%emt 0:00:49]} Rf7 {[%emt 0:01:27]} 24. Re1 {[%emt 0:00:36]} Rc7 {[%emt 0:00:22]} 25. b5 {[%emt 0:01:52]} Qf8 {[%emt 0:03:27]} 26. a4 {[%emt 0:02:15]} Kg8 {[%emt 0:11:07]} 27. Qe2 {[%emt 0:13:38]} Qc8 {[%emt 0:03:10]} 28. Qe3 {[%emt 0:05:26]} Rc3 {[%emt 0:07:02]} 29. Qg5 {[%emt 0:03:58]} Qc5 {[%emt 0:05:45]} 30. R1e2 {[%emt 0:02:07]} Rc1+ {[%emt 0:04:14]} 31. Kh2 {[%emt 0:00:33]} Rd1 {[%emt 0:00:47]} 32. Rxe7 {[%emt 0:08:58]} Qxd5 {[%emt 0:01:18]} 33. Qh6 {[%emt 0:00:44]} Qf5 {[%emt 0:00:39]} 34. Re8+ {[%emt 0:01:45]} Rf8 {[%emt 0:00:08]} 35. R2e7 {[%emt 0:00:22]} 1-0

[Event "Czech Youth U14 Boys 2024"]
[Site "Kouty nad Desnou"]
[Date "2024.03.14"]
[Round "7.4"]
[White "Svadlenka, Michal"]
[Black "Vana, Jan"]
[Result "0-1"]
[ECO "B32"]
[WhiteElo "1869"]
[BlackElo "1908"]
[Annotator "RC"]
[PlyCount "82"]
[EventDate "2024.03.10"]
[EventType "swiss"]
[EventCountry "CZE"]
[SourceTitle "playchess.com"]
[Source "ChessBase"]
[SourceQuality "1"]
[TimeControl "40/5400+30:1800+30"]

1. e4 {[%emt 0:00:02]} c5 {[%emt 0:00:20]} 2. Nf3 {[%emt 0:00:08]} Nc6 {[%emt 0:00:05]} 3. d4 {[%emt 0:00:06]} cxd4 {[%emt 0:00:04]} 4. Nxd4 {[%emt 0:00:06]} e5 {[%emt 0:00:04]} 5. Nb5 {[%emt 0:00:07]} d6 {[%emt 0:00:05]} 6. N1c3 {[%emt 0:00:14]} a6 {[%emt 0:00:33]} 7. Na3 {[%emt 0:00:06]} Be7 {[%emt 0:00:34]} 8. Be2 {[%emt 0:18:12]} b5 {[%emt 0:18:07]} 9. Nd5 {[%emt 0:02:44]} Nf6 {[%emt 0:07:16]} 10. Be3 {[%emt 0:14:58]} Nxd5 {[%emt 0:05:15]} 11. exd5 {[%emt 0:07:32]} Nd4 {[%emt 0:05:48]} 12. Bxd4 {[%emt 0:02:52]} exd4 {[%emt 0:00:45]} 13. Qxd4 {[%emt 0:01:52]} O-O {[%emt 0:03:08]} 14. c3 {[%emt 0:02:51]} Bf6 {[%emt 0:05:11]} 15. Qd2 {[%emt 0:02:55]} Rb8 {[%emt 0:11:16]} 16. Nc2 {[%emt 0:04:37]} Qb6 {[%emt 0:06:27]} 17. O-O {[%emt 0:02:17]} a5 {[%emt 0:02:51]} 18. a3 {[%emt 0:03:20]} Qc5 {[%emt 0:07:38]} 19. Rad1 {[%emt 0:11:59]} Bf5 {[%emt 0:07:06]} 20. Ne3 {[%emt 0:04:46]} Bg6 {[%emt 0:05:47]} 21. Ng4 {[%emt 0:08:07]} b4 {[%emt 0:06:06]} 22. Nxf6+ {[%emt 0:01:07]} gxf6 {[%emt 0:00:02]} 23. axb4 {[%emt 0:01:16]} axb4 {[%emt 0:00:25]} 24. c4 {[%emt 0:02:15]} b3 {[%emt 0:01:42]} 25. Qc3 {[%emt 0:00:39]} Kg7 {[%emt 0:01:12]} 26. Ra1 {[%emt 0:00:42]} Rb4 {[%emt 0:01:15]} 27. Ra6 {[%emt 0:01:44]} Rb6 {[%emt 0:03:53]} 28. Rfa1 {[%emt 0:02:01]} Re8 {[%emt 0:00:41]} 29. Kf1 {[%emt 0:01:15]} Qc7 {[%emt 0:00:50]} 30. Bd3 {[%emt 0:02:03]} Rxa6 {[%emt 0:00:27]} 31. Rxa6 {[%emt 0:00:13]} Qe7 {[%emt 0:00:24]} 32. Ra1 {[%emt 0:01:03]} Qe5 33. Qxe5 {[%emt 0:01:33]} Bxd3+ {[%emt 0:00:30]} 34. Kg1 {[%emt 0:00:57]} Rxe5 {[%emt 0:00:22]} 35. Rc1 {[%emt 0:00:21]} Re4 {[%emt 0:00:46]} 36. c5 {[%emt 0:00:22]} dxc5 {[%emt 0:00:26]} 37. f3 {[%emt 0:00:21]} Rc4 {[%emt 0:00:43]} 38. Rd1 {[%emt 0:00:19]} Bc2 {[%emt 0:00:29]} 39. Rd2 {[%emt 0:00:57]} Rd4 {[%emt 0:00:19]} 40. Rxd4 {[%emt 0:00:24]} cxd4 {[%emt 0:00:05]} 41. d6 {[%emt 0:30:33]} Kf8 {[%emt 0:30:13]} 0-1